bitfinex/quotes_SOLUSD_20240908
["timestamp","ask_amount","ask_price","bid_price","bid_amount"]
[1725754766696,6.1696,127.9,127.87,1.56744479]
[1725754766993,6.1696,127.9,127.88,1.56744479]
[1725754767400,6.1696,127.9,127.88,3.13494436]
[1725754767593,6.1696,127.9,127.87,1.56749957]
[1725754767789,6.1696,127.9,127.88,1.56749957]
[1725754767975,6.1696,127.9,127.87,1.56749957]
[1725754768175,6.1696,127.9,127.88,1.56749957]
[1725754768486,6.1696,127.9,127.87,1.56749957]
[1725754768794,6.1696,127.9,127.88,1.56749957]
[1725754769001,6.1696,127.9,127.87,1.56749957]
[1725754769169,6.1696,127.9,127.88,1.56749957]
[1725754769373,6.1696,127.9,127.87,1.56749957]
[1725754769598,6.1696,127.9,127.88,1.56749957]
[1725754769803,6.1696,127.9,127.87,1.56749957]
[1725754770103,6.1696,127.9,127.88,1.56749957]
[1725754770500,6.1696,127.9,127.86,20.0]
[1725754770680,6.1696,127.9,127.87,1.56742622]
[1725754773094,6.1696,127.9,127.88,1.56742622]
[1725754773300,6.1696,127.9,127.87,1.56742622]
[1725754773493,6.1696,127.9,127.88,1.56742622]
[1725754773679,6.1696,127.9,127.87,1.56742622]
[1725754774001,6.1696,127.9,127.88,1.56742622]
[1725754774385,6.1696,127.9,127.87,1.56742622]
[1725754774590,6.1696,127.9,127.88,1.56742622]
[1725754774900,6.1696,127.9,127.87,1.56742622]
[1725754775091,6.1696,127.9,127.88,1.56742622]
[1725754775288,6.1696,127.9,127.87,1.56742622]
[1725754775486,6.1696,127.9,127.88,1.56742622]
[1725754775685,6.1696,127.9,127.87,1.56742622]
[1725754775888,6.1696,127.9,127.88,1.56742622]
[1725754776086,6.1696,127.9,127.86,20.0]
[1725754776087,6.1696,127.9,127.87,1.56742622]
[1725754776286,6.1696,127.9,127.88,1.56742622]
[1725754776487,6.1696,127.9,127.87,1.56742622]
[1725754776691,6.1696,127.9,127.88,1.56742622]
[1725754776900,6.1696,127.9,127.87,1.56742622]
[1725754777196,6.1696,127.9,127.88,1.56742622]
[1725754777604,16.0333,127.89,127.87,21.56742622]
[1725754777905,17.98832559,127.89,127.84,21.56742622]
[1725754778075,17.98832559,127.89,127.85,1.56742622]
[1725754778279,17.98832559,127.89,127.86,1.56742622]
[1725754778482,17.98832559,127.89,127.83,1.56742622]
[1725754778680,17.98832559,127.89,127.84,1.56742622]
[1725754778991,17.98832559,127.89,127.85,1.56742622]
[1725754779194,17.98832559,127.89,127.83,1.56742622]
[1725754779405,17.98832559,127.89,127.84,1.56742622]
[1725754779584,17.98832559,127.89,127.85,1.56742622]
[1725754779784,17.98832559,127.89,127.83,1.56742622]
[1725754779999,17.98832559,127.89,127.84,1.56742622]
[1725754780201,17.98832559,127.89,127.85,1.56742622]
[1725754780497,17.98832559,127.89,127.83,1.56742622]
[1725754780705,17.98832559,127.89,127.84,1.56781347]
[1725754781003,25.80752559,127.89,127.85,1.56781347]
[1725754781201,8.40619973,127.88,127.83,1.56781347]
[1725754781397,6.4508,127.88,127.84,1.56781347]
[1725754781576,6.4508,127.88,127.85,1.56781347]
[1725754781779,6.4508,127.88,127.83,1.56781347]
[1725754781978,6.4508,127.88,127.84,1.56781347]
[1725754782197,6.4508,127.88,127.85,1.56781347]
[1725754782404,6.4508,127.88,127.83,1.56781347]
[1725754782699,6.4508,127.88,127.84,1.56781347]
[1725754782999,6.4508,127.88,127.85,1.56781347]
[1725754783208,6.4508,127.88,127.83,1.56781347]
[1725754783393,6.4508,127.88,127.84,1.56781347]
[1725754783699,6.4508,127.88,127.85,1.56781347]
[1725754783908,6.4508,127.88,127.83,1.56781347]
[1725754784094,6.4508,127.88,127.82,20.0]
[1725754784303,6.4508,127.88,127.84,1.567806]
[1725754784608,6.4508,127.88,127.85,1.567806]
[1725754784815,6.4508,127.88,127.83,1.567806]
[1725754785019,6.4508,127.88,127.84,1.567806]
[1725754785182,14.2723,127.86,127.81,1.567806]
[1725754785383,1.95571183,127.85,127.82,1.567806]
[1725754785682,1.95571183,127.85,127.78,11.44557144]
[1725754785683,1.95593955,127.84,127.79,1.567806]
[1725754785885,14.2723,127.86,127.8,1.567806]
[1725754786088,14.2723,127.86,127.78,11.44557144]
[1725754786089,46.95590495,127.85,127.81,1.567806]
[1725754786295,45.0,127.85,127.79,1.567806]
[1725754786609,45.0,127.85,127.8,1.567806]
[1725754786807,6.4508,127.86,127.81,1.567806]
[1725754786991,6.4508,127.86,127.82,1.567806]
[1725754787320,6.4508,127.86,127.79,20.0]
[1725754787321,6.4508,127.86,127.8,1.567806]
[1725754787700,6.4508,127.86,127.8,3.13586043]
[1725754787890,6.4508,127.86,127.8,1.56805443]
[1725754788810,6.4508,127.86,127.81,1.56805443]
[1725754789015,6.4508,127.86,127.8,1.56805443]
[1725754789212,6.4508,127.86,127.81,1.56805443]
[1725754789508,6.4508,127.86,127.8,1.56805443]
[1725754791124,6.4508,127.86,127.79,20.0]
[1725754791789,6.4508,127.86,127.8,1.56809183]
[1725754791790,14.2722,127.86,127.8,1.56809183]
[1725754794506,14.2722,127.86,127.79,21.56809183]
[1725754795696,6.4508,127.86,127.79,21.56809183]
[1725754800526,6.4508,127.86,127.79,20.0]
[1725754801422,6.4508,127.86,127.79,21.56809234]
[1725754801923,6.4508,127.86,127.79,20.0]
[1725754806322,6.4508,127.86,127.79,11.44557144]
[1725754806626,6.4508,127.86,127.8,20.0]
[1725754807325,6.1071,127.84,127.8,20.0]
[1725754807532,6.1071,127.84,127.76,11.44557144]
[1725754807834,6.1071,127.84,127.77,20.0]
[1725754811228,13.9295,127.84,127.77,20.0]
[1725754811407,7.8228,127.83,127.77,20.0]
[1725754811727,45.0,127.82,127.77,20.0]
[1725754811902,45.0,127.82,127.75,20.0]
[1725754814426,13.9294,127.84,127.75,20.0]
[1725754814632,13.9294,127.84,127.76,11.44557144]
[1725754814830,13.9294,127.84,127.77,20.0]
[1725754815523,6.1071,127.84,127.77,20.0]
[1725754815830,6.1071,127.84,127.8,11.44557144]
[1725754816032,6.1071,127.84,127.81,20.0]
[1725754820631,6.1071,127.84,127.82,11.44557144]
[1725754820944,15.6496,127.85,127.83,20.0]
[1725754821120,15.6496,127.85,127.81,20.0]
[1725754829848,6.5622,127.87,127.84,11.44557144]
[1725754830048,15.7331,127.89,127.86,11.44557144]
[1725754830459,15.7331,127.89,127.87,20.0]
[1725754830771,6.5622,127.9,127.88,11.44557144]
[1725754830923,6.5622,127.9,127.89,20.0]
[1725754834436,15.7331,127.95,127.89,20.0]
[1725754834643,6.5622,127.97,127.93,11.44557144]
[1725754835153,6.5622,127.97,127.94,20.0]
[1725754840533,6.5622,127.97,127.92,11.44557144]
[1725754840744,6.5622,127.97,127.93,20.0]
[1725754850044,6.5622,127.97,127.94,11.44557144]
[1725754850244,6.5622,127.97,127.95,20.0]
[1725754853965,6.5622,127.97,127.93,20.0]
[1725754862260,6.5622,127.97,127.93,11.44557144]
[1725754862456,6.5622,127.97,127.94,20.0]
[1725754867874,6.5622,127.97,127.95,11.44557144]
[1725754868197,6.5622,127.97,127.96,20.0]
[1725754869465,22.7569,128.02,127.96,20.0]
[1725754869801,22.7569,128.02,127.97,11.44557144]
[1725754870165,22.7569,128.02,127.98,20.0]
[1725754871292,22.7569,128.02,127.99,11.44557144]
[1725754871594,22.7569,128.05,128.01,11.44557144]
[1725754871798,22.7569,128.05,128.02,20.0]
[1725754873393,22.7569,128.05,128.0,20.0]
[1725754875684,24.70982935,128.05,128.0,20.0]
[1725754875990,46.9531079,128.04,127.97,31.44557144]
[1725754878089,45.0,128.04,127.97,31.44557144]
[1725754881186,6.0251,128.03,127.97,20.0]
[1725754881501,6.0251,128.03,127.93,11.44557144]
[1725754881502,6.0251,128.01,127.93,11.44557144]
[1725754881694,1.95358087,128.0,127.93,11.44557144]
[1725754882571,52.8127,128.0,127.93,11.44557144]
[1725754883002,45.0,128.0,127.93,11.44557144]
[1725754883395,23.72832435,127.99,127.9,1.56632084]
[1725754883600,23.72832435,127.99,127.87,1.56632084]
[1725754883601,6.0251,127.97,127.87,1.56632084]
[1725754883780,46.95435784,127.96,127.88,11.44557144]
[1725754883985,1.95438826,127.95,127.88,11.44557144]
[1725754884986,1.95438826,127.95,127.86,17.72252084]
[1725754885195,1.95438826,127.95,127.88,11.44557144]
[1725754885380,1.9544359,127.95,127.88,13.01189228]
[1725754885697,1.9544359,127.95,127.89,20.0]
[1725754885877,54.76959563,127.96,127.89,20.0]
[1725754887277,1.95437506,127.95,127.89,20.0]
[1725754887909,15.7494,127.95,127.89,20.0]
[1725754888083,45.0,127.94,127.89,20.0]
[1725754888913,15.7494,127.95,127.89,20.0]
[1725754890207,6.3254,127.93,127.89,20.0]
[1725754900298,15.7494,127.95,127.9,11.44557144]
[1725754900509,15.7494,127.95,127.91,20.0]
[1725754903009,15.7494,127.95,127.88,31.44557144]
[1725754903217,45.0,127.94,127.88,31.44557144]
[1725754904097,15.7494,127.95,127.88,31.44557144]
[1725754905512,15.7494,127.95,127.9,11.44557144]
[1725754905704,15.7494,127.95,127.91,20.0]
[1725754908423,6.1712,127.96,127.91,20.0]
[1725754910099,1.95416325,127.95,127.91,20.0]
[1725754911618,46.95428993,127.95,127.91,20.0]
[1725754911826,45.0,127.95,127.88,20.0]
[1725754914510,6.1712,127.96,127.89,11.44557144]
[1725754914710,6.1712,127.96,127.9,20.0]
[1725754920908,1.95416537,127.95,127.9,20.0]
[1725754921113,45.0,127.95,127.88,20.0]
[1725754921606,6.1712,127.96,127.91,11.44557144]
[1725754921917,6.1712,127.96,127.88,20.0]
[1725754921918,6.1712,127.96,127.88,31.44557144]
[1725754922110,45.0,127.95,127.88,31.44557144]
[1725754922530,45.0,127.95,127.88,20.0]
[1725754922942,6.1712,127.96,127.89,11.44557144]
[1725754923228,6.1712,127.96,127.9,20.0]
[1725754927129,6.1712,127.96,127.91,1.56719705]
[1725754928111,6.1712,127.96,127.9,20.0]
[1725754928418,6.1712,127.96,127.91,1.56711046]
[1725754928617,6.1712,127.96,127.9,20.0]
[1725754928939,6.1712,127.96,127.91,1.56711092]
[1725754929117,6.1712,127.96,127.92,1.56711046]
[1725754929524,6.1712,127.96,127.9,20.0]
[1725754929734,6.1712,127.96,127.91,1.56707356]
[1725754930038,6.1712,127.96,127.92,1.56707356]
[1725754930330,6.1712,127.96,127.9,20.0]
[1725754930529,6.1712,127.96,127.91,1.56711092]
[1725754930724,6.1712,127.96,127.92,1.56711092]
[1725754930922,6.1712,127.96,127.9,20.0]
[1725754931121,6.1712,127.96,127.91,1.56703805]
[1725754931334,6.1712,127.96,127.92,1.56703805]
[1725754931529,6.1712,127.96,127.9,20.0]
[1725754931737,6.1712,127.96,127.91,1.56707448]
[1725754931930,6.1712,127.96,127.92,1.56707448]
[1725754932111,6.1712,127.96,127.92,20.0]
[1725754936818,46.95421294,127.95,127.92,20.0]
[1725754937023,46.95421294,127.95,127.87,15.5743]
[1725754937024,46.95421294,127.95,127.88,20.0]
[1725754937231,45.0,127.95,127.88,20.0]
[1725754937433,45.0,127.95,127.89,11.44557144]
[1725754937735,45.0,127.95,127.9,20.0]
[1725754938322,13.9865,127.96,127.9,20.0]
[1725754939028,6.1712,127.96,127.9,20.0]
[1725754940339,6.1712,127.96,127.93,11.44557144]
[1725754940543,6.1712,127.96,127.94,20.0]
[1725754941724,6.1712,127.96,127.92,20.0]
[1725754951729,54.76957269,127.95,127.92,20.0]
[1725754952038,54.76957269,127.95,127.87,27.01987144]
[1725754952353,54.76957269,127.95,127.87,11.44557144]
[1725754953141,16.0432,127.94,127.87,11.44557144]
[1725754953359,1.95458601,127.93,127.87,11.44557144]
[1725754953649,1.95458601,127.93,127.88,20.0]
[1725754955862,25.81438437,127.94,127.88,20.0]
[1725754956029,25.81438437,127.94,127.84,15.1698]
[1725754956030,53.03468437,127.93,127.85,20.0]
[1725754956236,53.03468437,127.93,127.85,31.44557144]
[1725754957338,60.85138437,127.93,127.85,31.44557144]
[1725754958043,58.8968,127.93,127.85,31.44557144]
[1725754959633,60.85172519,127.93,127.85,31.44557144]
[1725754960468,58.8968,127.93,127.85,31.44557144]
[1725754961532,60.85178257,127.93,127.85,31.44557144]
[1725754962250,7.8173,127.92,127.85,20.0]
[1725754962457,21.7392,127.9,127.85,20.0]
[1725754970363,21.7392,127.9,127.86,11.44557144]
[1725754970553,21.7392,127.9,127.87,20.0]
[1725754972766,21.7392,127.9,127.85,20.0]
[1725754978575,23.69436903,127.9,127.85,20.0]
[1725754979477,21.7392,127.9,127.85,20.0]
[1725754982873,21.7392,127.9,127.86,11.44557144]
[1725754983076,21.7392,127.9,127.87,20.0]
[1725754984963,6.5781,127.89,127.8,8.17352033]
[1725754985159,6.5781,127.87,127.8,11.44557144]
[1725754985469,1.95577105,127.86,127.8,11.44557144]
[1725754985775,45.0,127.86,127.8,11.44557144]
[1725754985985,46.95578571,127.86,127.8,11.44557144]
[1725754986368,46.95578571,127.86,127.81,20.0]
[1725754987864,45.0,127.86,127.81,20.0]
[1725754988681,6.5781,127.87,127.81,20.0]
[1725754988976,6.5781,127.87,127.84,11.44557144]
[1725754989185,6.5781,127.87,127.85,20.0]
[1725754990360,22.4794,127.92,127.86,11.44557144]
[1725754990577,22.4794,127.92,127.87,20.0]
[1725754991880,45.0,127.91,127.87,20.0]
[1725754992257,22.4794,127.92,127.87,20.0]
[1725755000313,22.4794,127.92,127.85,11.44557144]
[1725755000668,22.4794,127.92,127.86,20.0]
[1725755005069,22.4794,127.92,127.87,11.44557144]
[1725755005271,8.58110595,127.96,127.89,11.44557144]
[1725755005272,15.5624,127.95,127.89,11.44557144]
[1725755005575,15.5624,127.95,127.9,20.0]
[1725755007195,6.5765,127.96,127.91,11.44557144]
[1725755007497,22.1389,127.99,127.93,11.44557144]
[1725755007676,22.1389,127.99,127.94,20.0]
[1725755008684,29.952,127.99,127.94,20.0]
[1725755008880,22.1389,127.99,127.94,20.0]
[1725755027690,24.09268019,127.99,127.94,20.0]
[1725755027893,46.95410608,127.98,127.91,11.44557144]
[1725755028090,46.95410608,127.98,127.92,20.0]
[1725755028615,45.0,127.98,127.92,20.0]
[1725755028793,22.1389,127.99,127.92,20.0]
[1725755028993,22.1389,127.99,127.93,11.44557144]
[1725755029201,22.1389,127.99,127.94,20.0]
[1725755045015,6.5765,127.99,127.94,20.0]
[1725755045619,1.95373626,127.98,127.94,35.4406]
[1725755045821,9.76663626,128.0,127.94,20.0]
[1725755046801,45.0,127.99,127.94,20.0]
[1725755047204,45.0,128.0,127.94,20.0]
[1725755048106,52.8125,128.0,127.94,20.0]
[1725755048301,14.4101,127.99,127.94,20.0]
[1725755048503,45.0,127.98,127.92,20.0]
[1725755049721,6.597,127.99,127.93,11.44557144]
[1725755049929,6.597,127.99,127.94,20.0]
[1725755051801,46.95388719,127.98,127.94,20.0]
[1725755052005,1.95400785,127.97,127.88,15.4406]
[1725755052318,6.597,127.96,127.88,15.4406]
[1725755052505,46.95463958,127.95,127.88,15.4406]
[1725755053105,46.95463958,127.95,127.88,26.88617144]
[1725755053306,45.0,127.95,127.88,26.88617144]
[1725755053516,45.0,127.95,127.89,20.0]
[1725755055614,14.4121,127.96,127.89,20.0]
[1725755055814,6.597,127.96,127.89,20.0]
[1725755057229,6.597,127.96,127.9,13.01273743]
[1725755057615,6.597,127.96,127.91,20.0]
[1725755057806,8.55125577,127.96,127.91,20.0]
[1725755058232,6.597,127.96,127.91,20.0]
[1725755058440,6.597,127.96,127.92,13.01273743]
[1725755058726,6.597,127.96,127.93,20.0]
[1725755059332,15.0006,127.98,127.93,20.0]
[1725755059924,6.597,127.99,127.93,20.0]
[1725755060137,6.597,127.99,127.94,13.01240539]
[1725755060306,6.597,127.99,127.94,11.44557144]
[1725755060512,6.597,127.99,127.95,20.0]
[1725755065549,16.0421,128.01,127.95,20.0]
[1725755065837,17.99552523,128.01,127.95,20.0]
[1725755068210,1.95345993,128.0,127.95,20.0]
[1725755068517,22.0682,128.05,127.98,11.44557144]
[1725755068714,6.0261,128.05,128.0,11.44557144]
[1725755069118,6.0261,128.05,128.01,20.0]
[1725755069330,31.676,128.08,128.01,20.0]
[1725755070323,1.95272078,128.07,128.01,20.0]
[1725755071533,54.76092078,128.07,128.01,20.0]
[1725755072132,7.8089,128.06,128.01,20.0]
[1725755072327,46.95295387,128.05,127.99,20.0]
[1725755072530,45.0,128.05,127.99,20.0]
[1725755091758,52.8098,128.05,127.99,20.0]
[1725755092053,7.8108,128.03,127.95,11.44557144]
[1725755092251,46.95349489,128.02,127.95,11.44557144]
[1725755092444,1.95355531,128.01,127.94,11.44557144]
[1725755092642,1.95367012,128.0,127.94,11.44557144]
[1725755092843,54.76483925,128.02,127.93,15.2335]
[1725755093139,52.8112,128.02,127.94,11.44557144]
[1725755093344,54.76483924,128.02,127.93,15.2335]
[1725755093542,54.76483924,128.02,127.94,31.44557144]
[1725755095056,1.9536614,128.01,127.94,31.44557144]
[1725755095854,6.1449,128.0,127.94,31.44557144]
[1725755100666,6.1449,128.0,127.96,11.44557144]
[1725755101155,6.1449,128.0,127.97,20.0]
[1725755107865,6.434,128.03,127.98,11.44557144]
[1725755108062,6.434,128.03,127.99,20.0]
[1725755112561,1.95305556,128.02,127.99,20.0]
[1725755112862,45.0,128.02,127.97,20.0]
[1725755113358,6.434,128.03,127.97,20.0]
[1725755113560,6.434,128.03,127.98,11.44557144]
[1725755113763,6.434,128.03,127.99,20.0]
[1725755114262,6.434,128.06,128.02,11.44557144]
[1725755114582,6.434,128.06,128.03,20.0]
[1725755120852,6.434,128.06,128.0,11.44557144]
[1725755121067,6.434,128.06,128.01,20.0]
[1725755122070,6.434,128.06,128.02,11.44557144]
[1725755122288,6.434,128.06,128.03,20.0]
[1725755127064,31.0242044,128.1,128.04,11.44557144]
[1725755127252,45.0,128.09,128.05,20.0]
[1725755127669,1.95228762,128.08,128.05,20.0]
[1725755128593,52.8071,128.09,128.03,20.0]
[1725755129378,45.0,128.09,128.03,20.0]
[1725755138069,68.5,128.09,128.03,20.0]
[1725755138272,45.0,128.09,128.03,20.0]
[1725755147671,15.8134,128.07,128.03,20.0]
[1725755147865,15.8134,128.07,127.99,31.44557144]
[1725755150578,23.6217,128.07,127.99,31.44557144]
[1725755151986,6.5257,128.06,127.99,31.44557144]
[1725755153394,6.5257,128.06,127.99,33.01158132]
[1725755154573,6.5257,128.06,127.99,31.44557144]
[1725755155279,6.5257,128.06,127.99,33.01165443]
[1725755155479,6.5257,128.06,128.0,1.56608299]
[1725755155771,6.5257,128.06,128.01,11.44557144]
[1725755155978,6.5257,128.06,128.02,20.0]
[1725755161594,6.5257,128.06,128.03,11.44557144]
[1725755161802,6.5257,128.06,128.04,20.0]
[1725755163607,14.3345,128.06,127.96,8.09450105]
[1725755163775,30.0472,128.04,127.95,7.16945955]
[1725755164101,60.2423,128.05,127.93,15.8134]
[1725755164102,21.7895,128.01,127.93,11.44557144]
[1725755164400,9.76620368,128.0,127.93,11.44557144]
[1725755164593,14.3607,127.99,127.91,11.44557144]
[1725755164801,6.5472,127.96,127.88,8.09387096]
[1725755165098,6.5472,127.96,127.88,11.44557144]
[1725755165099,1.9542252,127.95,127.88,11.44557144]
[1725755166685,1.9542252,127.95,127.89,20.0]
[1725755167610,1.95435828,127.94,127.89,20.0]
[1725755167783,1.95435828,127.94,127.87,11.44557144]
[1725755168105,6.5472,127.96,127.89,11.44557144]
[1725755168613,6.5472,127.96,127.9,20.0]
[1725755169403,6.5472,127.96,127.91,11.44557144]
[1725755169602,6.5472,127.96,127.92,20.0]
[1725755170400,6.5472,127.96,127.87,11.44557144]
[1725755170585,6.5472,127.96,127.88,20.0]
[1725755173206,14.3621,127.96,127.88,20.0]
[1725755174606,6.5472,127.96,127.89,11.44557144]
[1725755174915,6.5472,127.96,127.9,20.0]
[1725755177007,14.3624,127.96,127.9,20.0]
[1725755177212,45.0,127.95,127.88,20.0]
[1725755177412,45.0,127.95,127.87,11.44557144]
[1725755177617,45.0,127.95,127.88,20.0]
[1725755177805,46.9545912,127.95,127.88,20.0]
[1725755178522,21.7895,127.94,127.88,20.0]
[1725755178718,1.95473001,127.93,127.86,20.0]
[1725755180413,21.7895,127.94,127.87,11.44557144]
[1725755180712,21.7895,127.94,127.88,20.0]
[1725755181495,29.6056,127.94,127.88,20.0]
[1725755183110,29.6056,127.94,127.86,20.0]
[1725755186697,29.6056,127.94,127.87,11.44557144]
[1725755187016,29.6056,127.94,127.88,20.0]
[1725755187713,31.56028751,127.94,127.88,20.0]
[1725755189416,1.95468933,127.93,127.88,20.0]
[1725755189621,46.95468933,127.93,127.86,20.0]
[1725755190321,45.0,127.93,127.86,20.0]
[1725755191693,29.6056,127.94,127.86,20.0]
[1725755191902,29.6056,127.94,127.87,11.44557144]
[1725755192209,29.6056,127.94,127.88,20.0]
[1725755192722,21.7895,127.94,127.88,20.0]
[1725755194320,29.6058,127.94,127.88,20.0]
[1725755194515,45.0,127.93,127.88,20.0]
[1725755200019,21.7895,127.94,127.88,20.0]
[1725755200901,29.6058,127.94,127.88,20.0]
[1725755201103,29.6058,127.94,127.86,11.44557144]
[1725755201303,29.6058,127.94,127.87,20.0]
[1725755201613,53.1058,127.94,127.87,20.0]
[1725755201923,29.6058,127.94,127.87,20.0]
[1725755202123,45.0,127.93,127.87,20.0]
[1725755203217,21.7895,127.94,127.87,20.0]
[1725755203421,23.74438281,127.94,127.87,20.0]
[1725755203603,45.0,127.93,127.87,20.0]
[1725755205626,21.7895,127.94,127.87,20.0]
[1725755213740,1.95471709,127.93,127.87,20.0]
[1725755214026,45.0,127.93,127.84,11.44557144]
[1725755214221,45.0,127.93,127.88,20.0]
[1725755214928,45.0,127.93,127.85,20.0]
[1725755215808,45.0,127.93,127.86,11.44557144]
[1725755216131,45.0,127.93,127.87,20.0]
[1725755218721,45.0,127.93,127.88,1.56737742]
[1725755219018,45.0,127.93,127.89,1.56737742]
[1725755219218,45.0,127.93,127.9,1.56737742]
[1725755219428,45.0,127.93,127.87,20.0]
[1725755219733,45.0,127.93,127.88,1.56736832]
[1725755219936,45.0,127.93,127.89,1.56736832]
[1725755220431,45.0,127.93,127.9,1.56736832]
[1725755220633,45.0,127.93,127.87,20.0]
[1725755220854,45.0,127.93,127.88,1.56736832]
[1725755221062,45.0,127.93,127.89,1.56736832]
[1725755221347,45.0,127.93,127.9,1.56736832]
[1725755221511,45.0,127.93,127.87,20.0]
[1725755221709,45.0,127.93,127.88,1.56736693]
[1725755221934,45.0,127.93,127.89,1.56736693]
[1725755222133,45.0,127.93,127.9,1.56736693]
[1725755222438,45.0,127.93,127.87,20.0]
[1725755222629,45.0,127.93,127.88,1.56737742]
[1725755222933,45.0,127.93,127.89,1.56737742]
[1725755223135,45.0,127.93,127.9,1.56737742]
[1725755223335,45.0,127.93,127.87,20.0]
[1725755223535,45.0,127.93,127.88,1.56735923]
[1725755223826,45.0,127.93,127.89,1.56735923]
[1725755224035,45.0,127.93,127.9,1.56735923]
[1725755224239,45.0,127.93,127.87,20.0]
[1725755224436,45.0,127.93,127.88,1.56737742]
[1725755224626,45.0,127.93,127.89,1.56737742]
[1725755224826,45.0,127.93,127.9,1.56737742]
[1725755225021,45.0,127.93,127.87,20.0]
[1725755225222,45.0,127.93,127.88,1.56736832]
[1725755225418,45.0,127.93,127.89,1.56736832]
[1725755225625,21.7895,127.94,127.87,20.0]
[1725755225952,21.7895,127.94,127.89,1.56737156]
[1725755226316,21.7895,127.94,127.9,1.56737156]
[1725755226538,21.7895,127.94,127.91,1.56737156]
[1725755226730,21.7895,127.94,127.87,20.0]
[1725755226938,21.7895,127.94,127.88,1.56731503]
[1725755227243,21.7895,127.94,127.89,1.56731503]
[1725755227415,21.7895,127.94,127.9,1.56731503]
[1725755227620,21.7895,127.94,127.91,1.56731503]
[1725755227935,21.7895,127.94,127.87,20.0]
[1725755228242,21.7895,127.94,127.88,1.56734906]
[1725755228441,21.7895,127.94,127.89,1.56734906]
[1725755228645,21.7895,127.94,127.9,1.56734906]
[1725755228845,21.7895,127.94,127.87,20.0]
[1725755229743,21.7895,127.94,127.88,1.56734906]
[1725755229943,21.7895,127.94,127.89,1.56734906]
[1725755230129,21.7895,127.94,127.9,1.56734906]
[1725755230335,21.7895,127.94,127.87,20.0]
[1725755230658,21.7895,127.94,127.88,1.56734906]
[1725755230946,21.7895,127.94,127.89,1.56734906]
[1725755231144,21.7895,127.94,127.9,1.56734906]
[1725755231353,21.7895,127.94,127.87,20.0]
[1725755231545,21.7895,127.94,127.88,1.56734906]
[1725755231720,21.7895,127.94,127.89,1.56734906]
[1725755231926,21.7895,127.94,127.9,1.56734906]
[1725755232121,21.7895,127.94,127.87,20.0]
[1725755232321,21.7895,127.94,127.88,1.56734906]
[1725755232736,21.7895,127.94,127.87,20.0]
[1725755232737,21.7895,127.94,127.89,1.56734906]
[1725755232940,6.5472,127.94,127.89,1.56734906]
[1725755233147,6.5472,127.94,127.89,21.56734906]
[1725755233737,6.5472,127.94,127.9,1.56734906]
[1725755233930,6.5472,127.94,127.91,1.56725389]
[1725755234131,6.5472,127.94,127.88,20.0]
[1725755234453,6.5472,127.94,127.89,1.56726799]
[1725755234642,6.5472,127.94,127.9,1.56726799]
[1725755234844,6.5472,127.94,127.91,1.56726799]
[1725755235153,6.5472,127.94,127.88,20.0]
[1725755235455,6.5472,127.94,127.89,1.5673122]
[1725755235632,6.5472,127.94,127.9,1.5673122]
[1725755235835,6.5472,127.94,127.88,20.0]
[1725755236657,6.5472,127.94,127.89,1.5673122]
[1725755236859,45.0,127.93,127.9,1.5673122]
[1725755237156,45.0,127.93,127.87,20.0]
[1725755237537,45.0,127.93,127.88,1.56735308]
[1725755237860,45.0,127.93,127.89,1.56735308]
[1725755238029,45.0,127.93,127.9,1.56735308]
[1725755238233,45.0,127.93,127.87,20.0]
[1725755238433,45.0,127.93,127.88,1.56734042]
[1725755238633,45.0,127.93,127.89,1.56734042]